bitfinex/quotes_ETHUSD_20251017
["timestamp","ask_amount","ask_price","bid_price","bid_amount"]
[1760669928740,2.7074,3931.3,3931.2,0.472]
[1760669930838,2.7074,3931.3,3931.2,0.002]
[1760669932437,3.10639185,3931.3,3931.2,0.4367]
[1760669933239,3.10639185,3931.3,3931.2,0.002]
[1760669934334,5.65007968,3931.3,3931.2,0.002]
[1760669934847,5.75107968,3931.3,3931.2,0.002]
[1760669935147,16.43190268,3931.3,3931.2,0.002]
[1760669935312,15.68792668,3931.3,3931.2,0.002]
[1760669935511,15.32056468,3931.3,3931.2,0.002]
[1760669936124,15.62072068,3931.3,3931.2,0.002]
[1760669936923,15.19319868,3931.3,3931.2,0.002]
[1760669937123,5.70107968,3931.3,3931.2,0.002]
[1760669937428,7.96896368,3931.3,3931.2,0.002]
[1760669938164,9.31989083,3931.3,3931.2,0.002]
[1760669938664,17.98043783,3931.3,3931.2,0.002]
[1760669938821,18.08143783,3931.3,3931.2,0.002]
[1760669939626,32.21134972,3931.3,3931.2,0.002]
[1760669940151,27.54342983,3931.3,3931.2,0.002]
[1760669940455,22.01125238,3931.3,3931.2,0.002]
[1760669940757,2.54368783,3931.3,3931.2,0.002]
[1760669941059,7.27633583,3931.3,3931.2,0.002]
[1760669941225,7.67539762,3931.3,3931.2,0.002]
[1760669941623,15.99929462,3931.3,3931.2,0.002]
[1760669942154,11.23515562,3931.3,3931.2,0.002]
[1760669942358,7.62415562,3931.3,3931.2,0.002]
[1760669942670,8.84133462,3931.3,3931.2,0.002]
[1760669942877,2.51738779,3931.3,3931.2,0.002]
[1760669943080,2.51738779,3931.3,3931.2,0.6557]
[1760669943081,2.97906179,3931.3,3931.2,0.6557]
[1760669943408,3.10546179,3931.3,3931.2,0.6557]
[1760669943910,0.39906179,3931.3,3931.2,3.19945254]
[1760669944203,2.97906179,3931.3,3931.2,3.22489006]
[1760669944404,2.97906179,3931.3,3931.2,3.19945254]
[1760669945311,2.97906179,3931.3,3931.2,0.6557]
[1760669945692,2.97906179,3931.3,3931.2,0.2212]
[1760669945998,2.97906179,3931.3,3931.2,0.002]
[1760669947618,2.97906179,3931.3,3931.2,3.19945254]
[1760669947805,2.97906179,3931.3,3931.2,0.6557]
[1760669947998,2.97906179,3931.3,3931.2,0.68113752]
[1760669948199,2.97906179,3931.3,3931.2,0.6557]
[1760669948601,2.97906179,3931.3,3931.2,3.19945254]
[1760669948923,0.39906179,3931.3,3931.2,3.22489006]
[1760669949134,0.001,3931.4,3931.3,3.17728783]
[1760669949299,0.001,3931.4,3931.3,3.61178783]
[1760669950340,0.001,3931.4,3931.3,3.6372247]
[1760669950620,0.001,3931.4,3931.3,5.33978783]
[1760669955121,0.001,3931.4,3931.2,0.002]
[1760669955122,0.1,3931.4,3931.2,0.002]
[1760669955334,0.099,3931.3,3931.2,0.002]
[1760669955500,0.001,3931.4,3931.2,0.002]
[1760669956436,0.099,3931.3,3931.2,0.002]
[1760669957031,0.001,3931.4,3931.2,0.002]
[1760669957398,0.1,3931.4,3931.2,0.002]
[1760669957594,0.099,3931.3,3931.2,0.002]
[1760669960332,8.94327083,3931.3,3931.2,0.002]
[1760669960530,5.92571075,3931.3,3931.2,0.002]
[1760669961113,5.57761975,3931.3,3931.2,0.002]
[1760669963441,0.001,3931.4,3931.2,0.002]
[1760669963820,2.579,3931.3,3931.2,0.4737]
[1760669964025,2.579,3931.3,3931.2,0.002]
[1760669964959,2.579,3931.3,3931.2,0.4737]
[1760669965123,2.579,3931.3,3931.2,0.002]
[1760669968429,2.579,3931.3,3931.2,0.4737]
[1760669969030,2.579,3931.3,3931.2,0.002]
[1760669971862,2.58,3931.3,3931.2,0.002]
[1760669973766,2.58,3931.3,3931.2,3.862]
[1760669975962,2.6449,3931.3,3931.2,3.862]
[1760669977678,2.58,3931.3,3931.2,3.862]
[1760669977977,2.97902112,3931.3,3931.2,3.862]
[1760669978174,21.65007972,3931.3,3931.2,0.002]
[1760669978554,9.41714095,3931.3,3931.2,0.002]
[1760669978750,9.01811983,3931.3,3931.2,0.002]
[1760669979178,13.90531983,3931.3,3931.2,0.002]
[1760669979372,13.52851683,3931.3,3931.2,0.002]
[1760669979737,18.1967796,3931.3,3931.2,0.002]
[1760669980142,25.8203246,3931.3,3931.2,0.002]
[1760669980344,25.4203246,3931.3,3931.2,0.002]
[1760669980579,23.7427906,3931.3,3931.2,0.002]
[1760669981244,25.9616486,3931.3,3931.2,0.002]
[1760669981444,20.64764016,3931.3,3931.2,0.002]
[1760669982354,25.19453416,3931.3,3931.2,0.002]
[1760669983084,23.55675816,3931.3,3931.2,0.002]
[1760669983599,4.67177639,3931.3,3931.2,0.002]
[1760669983744,7.73136439,3931.3,3931.2,0.002]
[1760669984145,5.52377639,3931.3,3931.2,0.002]
[1760669984361,7.64777639,3931.3,3931.2,0.002]
[1760669985087,5.10408856,3931.3,3931.2,0.002]
[1760669985273,5.52377639,3931.3,3931.2,0.002]
[1760669988783,5.58867639,3931.3,3931.2,0.002]
[1760669989089,5.52377639,3931.3,3931.2,0.002]
[1760669990297,2.98008856,3931.3,3931.2,0.002]
[1760669990585,0.40008856,3931.3,3931.2,0.6956]
[1760669990754,2.581,3931.3,3931.2,0.6956]
[1760669993262,2.581,3931.3,3931.2,0.002]
[1760669998789,2.7074,3931.3,3931.2,0.002]
[1760670000391,0.1274,3931.3,3931.2,4.33243752]
[1760670000588,0.001,3931.3,3931.2,6.87619006]
[1760670000795,0.001,3931.3,3931.2,7.48435254]
[1760670001502,0.001,3931.3,3931.2,3.75075254]
[1760670002983,0.001,3931.3,3931.2,0.1284]
[1760670003198,0.001,3931.3,3931.2,0.002]
[1760670003702,0.001,3931.3,3931.2,3.00655254]
[1760670004078,0.001,3931.3,3931.2,2.54575254]
[1760670004468,2.58,3931.3,3931.2,0.002]
[1760670004665,2.7064,3931.3,3931.2,0.002]
[1760670005403,2.7064,3931.3,3931.2,0.4628]
[1760670006674,0.001,3931.3,3931.2,3.76655254]
[1760670006876,0.001,3931.3,3931.2,5.51999006]
[1760670007078,0.001,3931.3,3931.2,5.49455254]
[1760670007284,0.001,3931.4,3931.3,3.17728783]
[1760670007599,0.001,3931.4,3931.3,6.21708783]
[1760670007980,0.001,3931.4,3931.3,7.94508783]
[1760670016497,0.001,3931.4,3931.3,11.80508783]
[1760670019268,0.001,3931.4,3931.3,8.13168783]
[1760670019575,0.001,3931.4,3931.3,11.34328783]
[1760670019941,0.001,3931.4,3931.3,17.40575906]
[1760670020342,0.001,3931.4,3931.3,13.54575906]
[1760670021476,0.001,3931.4,3931.3,17.40575906]
[1760670023653,0.001,3931.4,3931.3,11.34328783]
[1760670023854,0.001,3931.4,3931.3,11.80108783]
[1760670025462,0.001,3931.4,3931.3,11.34328783]
[1760670025848,0.001,3931.4,3931.3,11.80108783]
[1760670027682,0.001,3932.1,3932.0,4.90483499]
[1760670027864,0.001,3932.1,3932.0,16.94450622]
[1760670028062,0.001,3932.1,3932.0,13.54230622]
[1760670028666,0.2052,3933.5,3932.5,3.17651163]
[1760670028867,2.54267098,3934.5,3932.5,13.10961197]
[1760670029081,0.1001,3933.4,3932.5,13.54198286]
[1760670030508,0.1001,3933.4,3932.5,13.08418286]
[1760670030694,0.1011,3933.2,3932.5,13.08418286]
[1760670030868,0.001,3933.2,3932.5,13.54198286]
[1760670034078,0.001,3933.2,3932.5,17.40198286]
[1760670034475,0.001,3933.2,3932.7,3.17638231]
[1760670034692,0.001,3933.2,3932.7,8.78981013]
[1760670034884,0.001,3933.2,3932.7,9.22218231]
[1760670035597,0.001,3933.2,3932.7,5.36218231]
[1760670035915,0.001,3933.2,3932.7,5.48858231]
[1760670040601,0.001,3933.2,3932.7,4.39718231]
[1760670040780,0.1838,3932.9,3932.7,6.97418231]
[1760670040981,0.1838,3932.9,3932.7,9.99885354]
[1760670041204,0.1039,3932.8,3932.7,12.57585354]
[1760670041516,0.1039,3932.8,3932.7,13.20945354]
[1760670041720,0.1039,3932.8,3932.7,4.39718231]
[1760670042017,0.1039,3932.8,3932.7,2.66918231]
[1760670042206,0.1039,3932.8,3932.7,0.1264]
[1760670042413,0.1039,3932.8,3932.7,3.30278231]
[1760670042584,0.1039,3932.8,3932.7,0.1264]
[1760670042787,0.1039,3932.8,3932.6,0.002]
[1760670043221,2.64662309,3932.8,3932.6,0.002]
[1760670043386,0.1264,3932.7,3932.6,0.002]
[1760670043588,2.66918231,3932.7,3932.6,0.002]
[1760670043787,2.77208231,3932.7,3932.6,0.002]
[1760670045327,35.04677508,3932.7,3932.6,0.002]
[1760670045628,29.53999595,3932.7,3932.6,0.002]
[1760670045827,28.3505582,3932.7,3932.6,0.002]
[1760670046193,37.57087895,3932.7,3932.6,0.002]
[1760670047003,24.78725616,3932.7,3932.6,0.002]
[1760670047208,22.23837236,3932.7,3932.6,0.002]
[1760670048321,17.97781236,3932.7,3932.6,0.002]
[1760670049101,15.17205436,3932.7,3932.6,0.002]
[1760670049298,16.75438136,3932.7,3932.6,0.002]
[1760670049632,4.77268106,3932.7,3932.6,0.002]
[1760670049809,9.47371531,3932.7,3932.6,0.002]
[1760670050010,4.4079,3932.7,3932.6,0.002]
[1760670050211,1.8309,3932.7,3932.6,0.002]
[1760670050540,4.4079,3932.7,3932.6,0.002]
[1760670050706,6.95068231,3932.7,3932.6,0.002]
[1760670050899,0.1029,3932.7,3932.6,0.002]
[1760670051211,2.577,3932.7,3932.6,0.002]
[1760670052301,2.6799,3932.7,3932.6,0.002]
[1760670052702,0.1029,3932.7,3932.6,0.002]
[1760670052928,2.6799,3932.7,3932.6,0.002]
[1760670055437,2.577,3932.7,3932.6,0.002]
[1760670055737,5.22268231,3932.7,3932.6,0.002]
[1760670056040,2.577,3932.7,3932.6,0.002]
[1760670056828,0.001,3932.8,3932.7,2.54278231]
[1760670057034,0.001,3932.8,3932.7,3.63541013]
[1760670057229,0.001,3932.8,3932.7,3.60998231]
[1760670058051,0.001,3932.8,3932.7,3.63541013]
[1760670058355,0.001,3932.8,3932.7,3.60998231]
[1760670060424,0.001,3932.8,3932.6,2.54484086]
[1760670060632,0.001,3932.8,3932.6,0.6356]
[1760670061038,0.001,3932.8,3932.6,3.17844455]
[1760670061362,2.6769,3932.7,3932.6,0.002]
[1760670061720,5.21968231,3932.7,3932.6,0.002]
[1760670062221,15.55206431,3932.7,3932.6,0.002]
[1760670062423,15.95099403,3932.7,3932.6,0.002]
[1760670063259,15.35560803,3932.7,3932.6,0.002]
[1760670064161,30.08783903,3932.7,3932.6,0.002]
[1760670065032,37.34661203,3932.7,3932.6,0.002]
[1760670065233,35.55678903,3932.7,3932.6,0.002]
[1760670065646,36.19038903,3932.7,3932.6,0.002]
[1760670065866,34.27104096,3932.3,3932.2,0.002]
[1760670066164,48.42018617,3932.3,3932.2,0.002]
[1760670066461,48.52008617,3932.3,3932.2,0.002]
[1760670066662,1.728,3932.2,3931.8,0.002]
[1760670066866,29.84611167,3931.9,3931.8,0.002]
[1760670067168,30.58111167,3931.9,3931.8,0.002]
[1760670067464,30.68201167,3931.9,3931.8,0.002]
[1760670067830,31.08109108,3931.9,3931.8,0.002]
[1760670068033,35.02437908,3931.9,3931.8,0.002]
[1760670069874,6.78665508,3931.9,3931.8,0.002]
[1760670070038,2.97707941,3931.9,3931.8,0.002]
[1760670070237,17.34421108,3931.9,3931.8,0.002]
[1760670070582,19.17411108,3931.9,3931.8,0.002]
[1760670071159,22.51918108,3931.9,3931.8,0.002]
[1760670071897,18.60633508,3931.9,3931.8,0.002]
[1760670072105,13.16208908,3931.9,3931.8,0.002]
[1760670072314,5.10810841,3931.9,3931.8,0.002]
[1760670072509,9.33574267,3931.9,3931.8,0.002]
[1760670072674,6.792443,3931.9,3931.8,0.002]
[1760670072860,6.792443,3931.9,3931.8,0.4555]
[1760670072861,1.728,3931.9,3931.8,0.4555]
[1760670073062,0.1274,3932.8,3932.3,2.54304096]
[1760670073263,2.055,3932.7,3932.6,2.54284697]
[1760670073510,0.001,3932.8,3932.7,2.54278231]
[1760670073712,0.001,3932.8,3932.7,3.65531013]
[1760670073913,0.001,3932.8,3932.7,3.62988231]
[1760670074066,0.001,3932.8,3932.7,3.65531013]
[1760670074466,0.001,3932.8,3932.7,5.38331013]
[1760670074696,0.001,3932.8,3932.7,5.35788231]
[1760670076468,0.001,3932.8,3932.7,1.0871]
[1760670076693,0.001,3932.8,3932.7,0.4535]
[1760670077277,0.001,3932.8,3932.7,2.99628231]
[1760670077604,0.001,3932.8,3932.7,3.65531013]
[1760670077788,0.001,3932.8,3932.7,3.62988231]
[1760670078094,0.001,3932.8,3932.7,0.6336]
[1760670078494,0.001,3932.8,3932.7,2.99628231]
[1760670078712,0.001,3932.8,3932.7,3.65531013]
[1760670078914,0.001,3932.8,3932.7,5.38331013]
[1760670079119,0.001,3932.8,3932.7,5.35788231]
[1760670081117,1e-08,3933.1,3933.0,3.17618835]
[1760670081287,1e-08,3933.1,3933.0,19.07875944]
[1760670081486,1e-08,3933.1,3933.0,19.48163356]
[1760670081916,1e-08,3933.1,3933.0,5.33248835]
[1760670082293,1e-08,3933.1,3933.0,4.69888835]
[1760670082616,1e-08,3933.1,3933.0,2.54258835]
[1760670082815,1e-08,3933.1,3932.5,0.2164]
[1760670083011,1e-08,3933.1,3932.6,0.6336]
[1760670083187,1e-08,3933.1,3932.5,0.2164]
[1760670083383,1e-08,3933.1,3932.8,2.54271012]
[1760670083822,1e-08,3933.1,3932.0,0.6447]
[1760670083984,0.2912,3933.0,3931.2,2.7620893]
[1760670084184,2.54275367,3932.8,3931.7,2.54336871]
[1760670084419,2.586,3932.7,3931.5,0.4283]
[1760670084619,2.586,3932.7,3931.7,2.54341448]
[1760670084620,2.8772,3932.7,3931.7,2.54341448]
[1760670084924,2.54286827,3932.6,3931.6,2.54346402]
[1760670085118,2.54294254,3932.5,3931.6,2.54346402]
[1760670085620,2.64194254,3932.5,3931.6,2.54346402]
[1760670085788,0.2051,3931.9,3931.4,0.002]
[1760670086200,5.764094,3932.5,3931.5,0.6336]
[1760670086400,5.764094,3932.5,3931.6,2.54347328]
[1760670086613,0.1001,3932.4,3931.5,2.54355225]
[1760670086833,0.1001,3932.4,3931.4,0.6356]
[1760670087035,0.1941,3932.6,3931.4,0.6356]
[1760670087036,9.328402,3932.5,3931.4,0.6356]
[1760670087208,2.586,3932.6,3932.1,2.5431217]
[1760670087413,2.586,3932.6,3932.4,2.54297437]
[1760670087621,2.586,3932.6,3932.2,0.23]
[1760670087820,0.1923,3932.5,3931.9,2.5432751]
[1760670088028,0.1264,3932.4,3932.1,2.5431664]
[1760670088237,2.586,3932.6,3932.4,2.54296652]
[1760670088407,2.585,3933.0,3932.9,2.5426495]
[1760670088802,1e-08,3933.1,3933.0,3.17618835]
[1760670089241,1e-08,3933.1,3933.0,3.60448835]
[1760670089410,1e-08,3933.1,3933.0,3.17618835]
[1760670089802,1e-08,3933.1,3932.9,2.66901178]
[1760670089999,1e-08,3933.1,3932.9,0.1264]
[1760670090204,0.12640001,3933.1,3932.7,2.54277431]
[1760670090633,0.12640001,3933.1,3932.5,0.1264]
[1760670090634,0.12640001,3933.1,3932.8,2.54265522]
[1760670090841,0.12640001,3933.1,3932.7,2.54276961]
[1760670091014,1e-08,3933.1,3932.2,0.6336]
[1760670091222,0.1264,3932.9,3932.3,2.54304096]
[1760670091416,0.1264,3932.9,3932.2,0.76]
[1760670091417,0.2079,3932.8,3932.2,0.76]
[1760670091617,0.2079,3932.8,3932.2,0.1264]
[1760670091830,0.1264,3932.6,3931.9,0.1264]
[1760670092135,2.586,3932.5,3931.9,0.1264]
[1760670092333,2.586,3932.5,3931.8,0.002]
[1760670092501,0.1264,3932.1,3931.8,0.002]
[1760670093502,2.586,3932.5,3931.9,2.97158158]
[1760670093503,0.1264,3932.4,3931.9,2.97158158]
[1760670093763,0.1264,3932.4,3932.1,0.002]
[1760670093933,0.2274,3932.4,3932.1,0.002]
[1760670094134,0.1264,3932.4,3932.1,2.54515802]
[1760670094334,0.1264,3932.4,3932.1,0.002]
[1760670095453,0.101,3932.3,3932.1,0.002]
[1760670095856,0.1264,3932.4,3932.1,0.002]
[1760670096254,0.2274,3932.4,3932.1,0.002]
[1760670096469,0.101,3932.3,3932.1,0.002]
[1760670097049,0.101,3932.2,3932.1,0.002]
[1760670097744,0.1264,3932.4,3932.1,0.002]
[1760670098869,0.2274,3932.4,3932.1,0.002]
[1760670099066,0.101,3932.3,3932.1,0.002]
[1760670099643,0.1264,3932.4,3932.1,0.002]
[1760670100665,2.586,3932.5,3932.2,0.4283]
[1760670100666,2.7124,3932.5,3932.2,0.4283]
[1760670100869,2.7124,3932.5,3932.3,2.54304046]
[1760670100870,2.585,3932.4,3932.3,2.54304046]
[1760670101175,2.585,3932.4,3932.2,2.97140452]
[1760670101380,2.585,3932.4,3932.1,0.002]
[1760670101885,0.1264,3932.3,3932.1,0.002]
[1760670105861,0.52533072,3932.3,3932.1,0.002]
[1760670106255,0.62633072,3932.3,3932.1,0.002]
[1760670106485,0.52533072,3932.3,3932.1,0.002]
[1760670106855,0.101,3932.2,3932.1,0.002]
[1760670107080,4.815014,3932.2,3932.1,0.002]
[1760670107278,2.286614,3932.2,3932.1,0.002]
[1760670107880,4.82971964,3932.2,3932.1,0.002]
[1760670108087,8.19306264,3932.2,3932.1,0.002]
[1760670108269,2.64410564,3932.2,3932.1,0.002]
[1760670108470,2.035,3932.2,3932.1,0.002]
[1760670108672,0.1264,3932.2,3932.1,2.77517031]
[1760670108883,2.54262627,3933.0,3932.2,2.54308596]
[1760670109082,0.1264,3932.5,3932.1,3.20346319]
[1760670109364,2.584,3932.4,3932.1,0.65298364]
[1760670109563,2.584,3932.4,3932.1,3.19614744]
[1760670109764,2.584,3932.4,3932.2,0.4283]
[1760670110064,2.584,3932.4,3932.2,2.97140324]
[1760670110262,2.584,3932.4,3932.1,0.22468364]
[1760670110263,2.584,3932.4,3932.3,0.4283]
[1760670110464,0.1264,3932.5,3932.3,2.97134096]
[1760670110662,2.584,3932.7,3932.5,0.6336]
[1760670110864,2.584,3932.7,3932.6,2.97108565]
[1760670111066,2.584,3932.7,3932.6,2.97114697]
[1760670112305,2.584,3932.7,3932.6,0.4283]
[1760670112601,2.584,3932.7,3932.5,3.17646367]
[1760670112602,2.584,3932.7,3932.5,3.17650824]
[1760670112800,2.584,3932.7,3932.4,0.1264]
[1760670113112,2.584,3932.7,3932.5,2.54291145]
[1760670113607,2.584,3932.7,3932.6,2.54284697]
[1760670113812,2.584,3932.7,3932.6,2.98954697]
[1760670116646,2.584,3932.7,3932.6,2.54284697]
[1760670117015,2.584,3932.7,3932.5,0.6336]
[1760670117416,2.584,3932.7,3932.6,2.54284697]
[1760670118348,2.582,3932.9,3932.6,2.54284697]
[1760670118529,2.894,3932.9,3932.4,0.1264]
[1760670118834,2.5195,3932.8,3932.1,0.002]
[1760670119019,0.1264,3932.7,3932.1,0.1284]
[1760670119394,0.1264,3932.7,3932.1,3.30516386]
[1760670120430,0.1264,3932.7,3932.2,2.54305626]
[1760670120833,0.1264,3932.7,3932.1,0.762]
[1760670121044,0.1264,3932.7,3932.6,2.54284697]
[1760670121220,2.581,3932.7,3932.6,0.443]
[1760670121414,2.581,3932.7,3932.3,0.3445]
[1760670121727,2.581,3932.7,3932.3,0.5694]
[1760670121926,2.581,3932.7,3932.3,2.66943711]
[1760670122105,2.581,3932.7,3932.4,2.54297214]
[1760670122440,2.581,3932.7,3932.6,2.54284697]
[1760670122634,2.581,3932.7,3932.4,2.98591809]
[1760670122935,2.581,3932.7,3932.6,2.54284697]
[1760670123236,2.581,3932.7,3932.6,2.98584697]
[1760670123422,0.39888354,3933.0,3932.9,2.542653]
[1760670123625,1e-08,3933.1,3933.0,3.17618835]
[1760670123842,0.001,3933.2,3933.1,2.5425237]
[1760670124044,0.001,3933.6,3933.4,4.90392979]
[1760670124222,0.001,3933.9,3933.7,0.6336]
[1760670124551,0.001,3933.9,3933.8,5.05549198]
[1760670124849,0.001,3933.9,3933.8,5.03007127]
[1760670125060,0.001,3933.9,3933.8,5.47307127]
[1760670126032,0.001,3933.9,3933.8,21.61084303]
[1760670131877,0.001,3933.9,3933.8,21.74069352]
[1760670132266,0.001,3933.9,3933.8,7.92867127]
[1760670132979,0.001,3933.9,3933.8,5.34667127]
[1760670133202,0.001,3934.5,3934.4,3.17528361]
[1760670133348,0.001,3934.5,3934.4,21.1918722]
[1760670133545,0.001,3934.5,3934.4,21.60945537]
[1760670133749,0.2152,3936.4,3936.3,3.17405677]
[1760670133983,0.39854861,3936.8,3936.5,3.1739277]
[1760670133984,0.2141,3936.6,3936.5,3.1739277]
[1760670134754,0.39847598,3937.3,3937.2,2.53987605]
[1760670134950,0.68987598,3937.3,3937.2,2.53987605]
[1760670135472,0.68987598,3937.3,3937.0,0.6336]
[1760670135674,0.1943,3937.1,3937.0,3.17360508]
[1760670136180,0.2933,3937.1,3937.0,3.30000508]
[1760670136388,0.1943,3937.1,3937.0,3.30000508]
[1760670136586,0.1943,3937.1,3937.0,0.76]
[1760670136803,0.2933,3937.1,3937.0,0.76]
[1760670137653,0.2933,3937.1,3936.2,3.026]
[1760670137654,0.2933,3937.1,3936.8,2.54008547]
[1760670137856,0.2933,3937.1,3936.7,0.1264]
[1760670137857,0.2199,3936.9,3936.7,0.1264]
[1760670138166,0.1002,3936.8,3936.7,0.76]
[1760670138760,0.1002,3936.8,3936.7,0.1264]
[1760670138979,0.1002,3936.8,3936.3,0.1264]
[1760670139182,2.76001648,3936.9,3936.1,2.66698231]
[1760670139183,0.2266,3936.7,3936.1,2.66698231]
[1760670139497,0.1002,3936.6,3936.1,2.66698231]
[1760670139670,0.1002,3936.5,3936.1,0.1264]
[1760670139875,0.1002,3936.4,3936.1,0.1264]
[1760670140180,0.1264,3936.7,3936.1,0.1264]
[1760670140181,0.2266,3936.7,3936.1,0.1264]
[1760670140402,0.2199,3936.9,3936.7,2.54014097]
[1760670140697,0.2199,3936.9,3936.2,0.6336]
[1760670140698,0.2199,3936.9,3936.8,2.54013411]
[1760670140992,0.3201,3936.9,3936.8,2.54013411]
[1760670141705,0.1943,3937.1,3937.0,2.54000508]
[1760670142409,0.1943,3937.1,3936.9,0.6336]
[1760670142700,0.2933,3937.1,3936.9,3.17364886]
[1760670142902,0.099,3937.0,3936.6,2.54021103]
[1760670143071,0.099,3937.0,3936.6,2.66661103]
[1760670143267,0.3201,3936.9,3936.6,2.66661103]
[1760670143473,0.3201,3936.9,3936.7,2.54019568]
[1760670143779,0.1002,3936.8,3936.6,0.1264]
[1760670144178,0.2199,3936.9,3936.6,0.1264]
[1760670144580,0.1002,3936.8,3936.6,0.1264]
[1760670145004,0.2199,3936.9,3936.6,0.1264]
[1760670145207,0.2199,3936.9,3935.9,0.4313]
[1760670145208,0.1002,3936.8,3935.2,2.54112933]
[1760670145409,0.1264,3936.0,3935.9,2.54071495]
[1760670145610,0.1264,3936.4,3935.8,0.1264]
[1760670145909,0.1264,3936.4,3935.9,2.54065547]
[1760670146107,0.1011,3936.3,3936.0,2.54064398]
[1760670146486,0.1264,3936.4,3935.9,0.6336]
[1760670146684,0.95,3936.8,3936.3,2.54044493]
[1760670147198,0.1011,3936.7,3936.3,2.54044493]
[1760670147399,0.1011,3936.7,3936.5,2.5403086]
[1760670147596,0.95,3936.8,3936.7,2.54019864]
[1760670147825,0.1264,3937.0,3936.7,2.54019864]
[1760670148037,2.7044,3937.0,3936.8,2.54011832]
[1760670148387,0.1264,3937.0,3936.8,2.54011832]
[1760670149133,0.001,3937.1,3937.0,2.54000508]
[1760670149487,0.001,3937.1,3936.9,0.1264]
[1760670149805,0.001,3937.1,3936.7,2.6665962]
[1760670149806,0.099,3937.0,3936.7,2.6665962]
[1760670150010,0.099,3937.0,3936.8,2.5401204]
[1760670150218,0.001,3937.1,3936.7,0.1264]
[1760670150405,0.001,3937.1,3937.0,2.54000508]
[1760670150607,0.001,3937.1,3937.0,3.17360508]
[1760670150809,0.001,3937.1,3937.0,3.30000508]
[1760670151787,0.001,3937.1,3937.0,0.1264]
[1760670152198,0.1021,3937.1,3936.2,0.6336]
[1760670152525,0.001,3937.1,3937.0,2.54000508]
[1760670152718,0.001,3937.1,3936.9,2.66645838]
[1760670152923,0.001,3937.1,3936.7,2.54014657]
[1760670153127,0.2285,3937.1,3936.8,2.54010966]
[1760670153601,0.2285,3937.1,3936.7,2.54015527]
[1760670153802,0.2285,3937.1,3936.8,2.54013002]
[1760670154327,0.001,3937.1,3937.0,2.54000508]
[1760670154517,0.001,3937.1,3937.0,2.56540513]
[1760670155100,0.001,3937.1,3937.0,3.17360508]
[1760670155329,0.001,3937.1,3937.0,3.73130508]
[1760670156230,0.001,3937.1,3937.0,3.75670513]
[1760670156741,0.001,3937.1,3937.0,3.73130508]
[1760670158139,0.001,3937.1,3937.0,3.30000508]
[1760670158644,0.001,3937.1,3937.0,3.73130508]
[1760670160303,0.001,3937.1,3937.0,3.30000508]
[1760670161337,0.001,3937.1,3937.0,0.1264]
[1760670161570,0.1011,3937.1,3937.0,0.1264]
[1760670161770,0.1011,3937.1,3937.0,2.66640508]
[1760670161970,0.001,3937.1,3937.0,2.66640508]
[1760670162762,0.001,3937.1,3937.0,0.1264]
[1760670162964,0.1011,3937.1,3936.7,2.66656649]
[1760670163479,0.1001,3937.0,3936.7,2.66656649]
[1760670163776,0.2164,3936.9,3936.7,2.66656649]
[1760670163957,0.2164,3936.9,3936.8,2.54013411]
[1760670164273,0.2164,3936.9,3936.2,0.6336]
[1760670164433,0.2164,3936.9,3936.5,0.1264]
[1760670164632,0.2164,3936.9,3936.8,2.54013411]
[1760670165869,0.001,3937.1,3936.9,2.54006815]
[1760670166363,0.001,3937.1,3937.0,3.17360508]
[1760670166573,2.578,3937.1,3937.0,3.30000508]
[1760670167477,0.001,3937.1,3937.0,3.17360508]
[1760670167845,0.001,3937.1,3937.0,0.6336]
[1760670168169,0.001,3937.1,3937.0,3.17360508]
[1760670168368,0.001,3937.1,3937.0,3.60490508]
[1760670169266,0.001,3937.1,3937.0,3.17360508]
[1760670170551,0.1,3937.1,3936.9,0.1264]
[1760670170777,0.099,3937.0,3936.6,2.54025592]
[1760670170963,0.3176,3936.9,3936.7,2.54018047]
[1760670171149,2.577,3936.8,3936.7,2.54018047]
[1760670171768,0.001,3937.1,3936.8,2.54007831]
[1760670171969,0.001,3937.1,3936.7,2.54019598]
[1760670172169,2.578,3937.0,3936.6,2.5402585]
[1760670172712,2.578,3937.0,3936.5,2.66671817]
[1760670172893,0.3176,3936.9,3936.6,2.54023967]
[1760670173371,0.2163,3936.9,3936.5,2.66671972]
[1760670173580,0.2163,3936.9,3936.8,2.54013411]
[1760670174688,0.3176,3936.9,3936.6,2.54026317]
[1760670174890,0.3176,3936.9,3936.7,2.5401849]
[1760670175386,0.2163,3936.9,3936.7,2.5401849]
[1760670176091,0.2163,3936.9,3936.8,2.54013411]
[1760670176807,2.7933,3936.9,3936.8,2.54013411]
[1760670177474,2.7933,3936.9,3936.6,2.54020396]
[1760670178372,0.1013,3936.8,3936.1,0.6336]
[1760670178575,0.1013,3936.8,3936.3,2.54043521]
[1760670178878,2.9197,3936.9,3936.0,2.54063615]
[1760670178879,0.2277,3936.7,3936.0,0.1264]
[1760670179408,0.2277,3936.7,3936.2,2.54051233]
[1760670179612,0.1264,3936.7,3936.2,2.54051233]
[1760670179789,0.1013,3936.6,3936.2,2.54051233]
[1760670180285,0.1264,3936.7,3936.0,0.1264]
[1760670180487,0.001,3937.1,3936.7,2.54019345]
[1760670180686,0.001,3937.1,3936.8,0.02540134]
[1760670180909,0.001,3937.1,3936.8,2.54008124]
[1760670180910,2.576,3937.0,3936.8,2.54008124]
[1760670181092,2.576,3937.0,3936.9,0.02540069]
[1760670181287,2.576,3937.0,3936.9,2.56547028]